bitfinex/quotes_SOLUSD_20250207
["timestamp","ask_amount","ask_price","bid_price","bid_amount"]
[1738923915042,0.03,197.25,197.21,23.57798916]
[1738923916052,0.03,197.25,197.21,18.50728916]
[1738923916752,0.03,197.25,197.22,11.85022034]
[1738923916926,0.03,197.25,197.24,11.85022034]
[1738923918242,0.03,197.25,197.24,231.65022034]
[1738923918652,0.03,197.25,197.24,238.30224164]
[1738923918827,0.03,197.25,197.24,244.37214164]
[1738923919024,0.03,197.26,197.25,2.0]
[1738923919229,0.03,197.26,197.25,239.06228836]
[1738923919445,0.03,197.26,197.25,237.30224164]
[1738923919843,0.03,197.26,197.25,238.30224164]
[1738923920534,0.03,197.26,197.25,555.37194164]
[1738923921151,0.03,197.26,197.25,556.37194164]
[1738923921451,0.03,197.27,197.26,2.0]
[1738923921648,0.03,197.27,197.26,253.47411231]
[1738923921824,0.03,197.27,197.26,252.71409017]
[1738923923052,0.03,197.27,197.26,257.78349017]
[1738923923749,0.03,197.27,197.26,242.37164164]
[1738923925732,0.03,197.27,197.26,218.8]
[1738923926052,0.03,197.27,197.21,237.30224164]
[1738923926229,18.53224164,197.27,197.21,237.30224164]
[1738923926429,18.50224164,197.26,197.19,155.70224164]
[1738923926741,18.50224164,197.25,197.19,137.2]
[1738923926943,18.50224164,197.24,197.19,137.2]
[1738923928150,23.57214164,197.25,197.19,137.2]
[1738923928658,23.57214164,197.24,197.19,137.2]
[1738923928831,5.0699,197.24,197.19,137.2]
[1738923929033,18.50224164,197.25,197.19,137.2]
[1738923929558,18.50224164,197.24,197.19,137.2]
[1738923930433,23.57234164,197.24,197.19,137.2]
[1738923930760,0.03,197.25,197.2,18.50224164]
[1738923931849,0.03,197.25,197.19,160.77344164]
[1738923932053,0.03,197.3,197.27,2.0]
[1738923932254,0.03,197.3,197.29,20.0]
[1738923933561,0.03,197.3,197.29,18.50224164]
[1738923933862,0.03,197.3,197.27,155.70224164]
[1738923934233,0.03,197.3,197.27,18.50224164]
[1738923934446,0.03,197.3,197.26,18.50224164]
[1738923934958,0.03,197.3,197.25,18.50224164]
[1738923935257,0.03,197.3,197.24,155.70224164]
[1738923935441,0.03,197.3,197.26,18.50224164]
[1738923936133,0.03,197.3,197.23,155.70224164]
[1738923936134,20.12724164,197.3,197.23,155.70224164]
[1738923936331,18.50224164,197.28,197.21,155.70224164]
[1738923937560,18.50224164,197.26,197.21,137.2]
[1738923937758,18.50224164,197.26,197.19,100.10224164]
[1738923938261,5.0702,197.23,197.18,18.50224164]
[1738923939461,5.0702,197.23,197.17,155.70224164]
[1738923940749,18.50224164,197.22,197.17,137.2]
[1738923941057,18.50224164,197.22,197.16,18.50224164]
[1738923941977,5.0702,197.23,197.17,18.56524164]
[1738923942278,23.57244164,197.23,197.17,18.56524164]
[1738923942861,5.0702,197.23,197.17,18.56524164]
[1738923943077,5.0702,197.23,197.18,18.50224164]
[1738923944371,23.57244164,197.23,197.17,18.56524164]
[1738923944856,18.50224164,197.22,197.17,0.063]
[1738923945053,18.50224164,197.21,197.17,0.063]
[1738923945251,20.14074164,197.21,197.17,0.063]
[1738923945578,1.6385,197.21,197.17,0.063]
[1738923946583,6.7094,197.21,197.17,0.063]
[1738923947765,25.21164164,197.21,197.17,0.063]
[1738923947964,18.50224164,197.2,197.17,0.063]
[1738923948167,6.7094,197.21,197.17,0.063]
[1738923951786,25.21164164,197.21,197.17,0.063]
[1738923951962,18.50224164,197.2,197.17,0.063]
[1738923952285,25.21164164,197.21,197.17,0.063]
[1738923955594,1.0,197.16,197.07,18.50224164]
[1738923955759,31.91409017,197.11,197.01,0.063]
[1738923956268,18.50224164,197.08,197.01,18.56524164]
[1738923956662,18.50224164,197.14,197.07,18.50224164]
[1738923956872,7.7112,197.16,197.1,18.50224164]
[1738923957182,13.41184853,197.15,197.03,137.2]
[1738923957389,18.50224164,197.13,197.03,137.2]
[1738923957572,18.50224164,197.13,197.07,18.50224164]
[1738923957763,5.073,197.12,197.07,18.50224164]
[1738923958885,23.57444164,197.15,197.08,18.50224164]
[1738923959398,18.50224164,197.14,197.08,18.50224164]
[1738923959995,5.0727,197.13,197.07,18.50224164]
[1738923960772,23.57494164,197.13,197.06,18.50224164]
[1738923961288,5.0727,197.13,197.08,18.50224164]
[1738923961672,23.57474164,197.14,197.08,18.50224164]
[1738923961879,18.50224164,197.12,197.05,18.50224164]
[1738923962184,18.50224164,197.09,197.03,137.2]
[1738923962394,18.50224164,197.08,197.02,0.063]
[1738923962986,18.50224164,197.07,197.02,0.063]
[1738923963193,18.50224164,197.06,197.02,0.063]
[1738923963599,18.50224164,197.05,197.02,0.063]
[1738923963802,5.0751,197.04,197.02,0.063]
[1738923965098,23.57734164,197.04,197.02,0.063]
[1738923965394,18.50224164,197.03,197.02,0.063]
[1738923965968,23.57754164,197.03,197.02,0.063]
[1738923967694,36.98939017,197.03,197.02,0.063]
[1738923968483,13.41184853,197.02,197.01,0.0001]
[1738923968777,31.91409017,197.02,197.01,0.0001]
[1738923969864,36.98969017,197.02,197.01,0.0001]
[1738923970263,36.98969017,197.02,197.0,0.0001]
[1738923970488,18.50224164,197.01,197.0,0.0001]
[1738923971366,31.91409017,197.01,197.0,0.0001]
[1738923971694,36.98989017,197.01,197.0,0.0001]
[1738923973178,23.57804164,197.01,197.0,0.0001]
[1738923973698,36.98989017,197.01,197.0,0.0001]
[1738923974808,102.4339,197.06,197.0,0.0001]
[1738923974809,18.50224164,197.04,197.0,0.0001]
[1738923975275,18.50224164,197.09,197.02,18.50224164]
[1738923975475,23.57604164,197.09,197.03,18.50224164]
[1738923975703,18.50224164,197.05,197.0,137.2001]
[1738923975922,18.50224164,197.05,197.0,0.0001]
[1738923976605,18.50224164,197.07,197.0,18.50234164]
[1738923976790,5.0745,197.07,197.02,18.50224164]
[1738923976988,5.0745,197.07,197.01,18.50224164]
[1738923977716,18.50224164,197.07,197.01,18.50224164]
[1738923978015,18.50224164,197.08,197.01,18.56524164]
[1738923978891,5.0743,197.07,197.01,18.56524164]
[1738923979091,23.57654164,197.07,197.01,18.56524164]
[1738923980106,18.50224164,197.08,197.01,18.56524164]
[1738923980721,0.03,197.1,197.06,18.50224164]
[1738923980928,5.1037,197.1,197.04,18.50224164]
[1738923981296,23.60594164,197.1,197.04,18.50224164]
[1738923982617,5.1037,197.1,197.05,18.50224164]
[1738923982927,5.1037,197.1,197.04,18.50224164]
[1738923983219,18.50224164,197.08,197.01,137.263]
[1738923983457,13.41184853,197.07,197.01,0.063]
[1738923983921,5.074,197.08,197.01,0.063]
[1738923984494,18.50224164,197.05,197.01,0.063]
[1738923984902,18.50224164,197.06,197.01,0.063]
[1738923985125,18.50224164,197.07,197.01,0.063]
[1738923985310,23.57624164,197.08,197.01,18.56524164]
[1738923985530,5.0739,197.09,197.03,18.50224164]
[1738923987531,5.1035,197.1,197.04,18.50224164]
[1738923988335,23.60574164,197.1,197.03,18.50224164]
[1738923989038,23.60574164,197.1,197.04,18.50224164]
[1738923989039,5.1035,197.1,197.04,18.50224164]
[1738923990336,18.50224164,197.09,197.03,218.8]
[1738923991435,18.50224164,197.08,197.03,218.8]
[1738923991936,5.0743,197.07,197.03,218.8]
[1738923992435,5.0738,197.09,197.04,18.50224164]
[1738923993532,5.1035,197.1,197.04,18.50224164]
[1738923993931,0.03,197.1,197.07,18.50224164]
[1738923994325,0.03,197.1,197.06,18.50224164]
[1738923995318,0.03,197.1,197.05,18.50224164]
[1738923995720,18.53224164,197.1,197.03,237.30224164]
[1738923996942,5.0738,197.09,197.03,237.30224164]
[1738924000349,23.60584164,197.1,197.03,237.30224164]
[1738924000714,18.50224164,197.09,197.03,237.30224164]
[1738924001944,5.074,197.08,197.03,237.30224164]
[1738924003932,18.50224164,197.09,197.03,237.30224164]
[1738924004138,23.60604164,197.1,197.03,237.30224164]
[1738924004665,18.50224164,197.04,197.01,0.063]
[1738924006563,23.57724164,197.05,197.01,0.063]
[1738924007045,5.075,197.05,197.01,0.063]
[1738924007217,18.50224164,197.06,197.01,0.063]
[1738924007419,23.57684164,197.06,197.01,0.063]
[1738924007933,23.57684164,197.06,197.01,0.563]
[1738924008435,13.41184853,197.09,197.02,18.50224164]
[1738924008436,5.0743,197.07,197.02,18.50224164]
[1738924009351,23.57624164,197.08,197.02,18.50224164]
[1738924012840,23.60624164,197.08,197.02,242.37774164]
[1738924013040,5.104,197.08,197.03,18.50224164]
[1738924014732,0.03,197.08,197.03,11.87289562]
[1738924015752,5.104,197.08,197.02,235.74839562]
[1738924016155,16.97689562,197.08,197.02,235.74839562]
[1738924018147,0.03,197.08,197.03,11.87289562]
[1738924019161,0.03,197.08,197.05,31.87289562]
[1738924019460,0.03,197.08,197.07,11.87289562]
[1738924020238,0.03,197.08,197.07,16.94719562]
[1738924022657,0.03,197.08,197.07,236.74719562]
[1738924022844,0.03,197.08,197.07,237.74719562]
[1738924023342,0.03,197.08,197.07,236.74719562]
[1738924023542,0.03,197.08,197.07,237.74719562]
[1738924024662,0.03,197.08,197.07,235.74719562]
[1738924026255,0.03,197.1,197.07,235.74719562]
[1738924026461,1.6495,197.21,197.11,1.0]
[1738924026636,16.94279562,197.24,197.18,11.87289562]
[1738924027872,16.94279562,197.24,197.17,11.87289562]
[1738924027873,11.87289562,197.23,197.17,11.87289562]
[1738924028559,6.6211,197.25,197.2,11.87289562]
[1738924028732,11.87289562,197.26,197.15,142.2722]
[1738924028733,5.0994,197.27,197.23,11.87289562]
[1738924028940,0.03,197.27,197.25,11.87289562]
[1738924029261,0.03,197.27,197.24,11.87289562]
[1738924029966,0.03,197.27,197.23,11.87289562]
[1738924030449,0.03,197.27,197.24,11.87289562]
[1738924030763,0.03,197.27,197.24,18.51234231]
[1738924031161,0.03,197.27,197.26,18.51234231]
[1738924032740,0.03,197.27,197.26,23.58174231]
[1738924033147,0.03,197.27,197.26,18.51234231]
[1738924033342,0.03,197.27,197.24,18.51234231]
[1738924033566,0.03,197.27,197.25,38.51234231]
[1738924033742,0.03,197.27,197.24,18.51234231]
[1738924033944,0.03,197.27,197.22,6.1039]
[1738924033945,0.03,197.27,197.22,18.51234231]
[1738924034143,0.03,197.27,197.21,155.71234231]
[1738924034665,5.0991,197.27,197.21,18.51234231]
[1738924035964,5.0991,197.27,197.22,18.51234231]
[1738924036669,0.03,197.27,197.21,18.51234231]
[1738924036854,18.51234231,197.25,197.19,237.31234231]
[1738924037171,18.51234231,197.26,197.19,100.11234231]
[1738924037469,31.95419084,197.27,197.2,18.51234231]
[1738924037771,0.03,197.27,197.25,18.51234231]
[1738924038457,0.03,197.27,197.26,18.51234231]
[1738924038966,0.03,197.27,197.25,18.51234231]
[1738924039867,18.54234231,197.27,197.21,18.51234231]
[1738924040168,0.03,197.27,197.22,18.51234231]
[1738924040358,0.03,197.27,197.23,18.51234231]
[1738924041960,0.03,197.27,197.25,18.51234231]
[1738924042158,0.03,197.27,197.26,38.51234231]
[1738924044965,0.03,197.27,197.25,18.51234231]
[1738924045272,0.03,197.27,197.23,237.31234231]
[1738924045470,0.03,197.27,197.26,18.51234231]
[1738924045872,0.03,197.27,197.25,18.51234231]
[1738924046267,0.03,197.27,197.26,23.58174231]
[1738924047166,0.03,197.27,197.26,43.58174231]
[1738924047368,0.03,197.27,197.26,242.38174231]
[1738924047573,0.03,197.27,197.26,243.38174231]
[1738924047768,0.0001,197.27,197.26,244.38174231]
[1738924048154,0.0001,197.28,197.27,2.0]
[1738924048497,0.0001,197.28,197.27,26.34142168]
[1738924048681,0.0001,197.28,197.27,245.14142168]
[1738924048972,0.0001,197.28,197.27,244.38144231]
[1738924049372,0.0001,197.28,197.27,245.66826644]
[1738924051081,0.0001,197.28,197.27,277.59245728]
[1738924052289,0.03,197.41,197.31,22.0]
[1738924052494,0.03,197.41,197.39,18.51234231]
[1738924052692,0.03,197.41,197.38,18.51234231]
[1738924052887,0.03,197.41,197.36,18.51234231]
[1738924053192,5.0957,197.41,197.35,38.51234231]
[1738924053498,23.60804231,197.41,197.34,18.51234231]
[1738924053860,5.0957,197.41,197.35,18.51234231]
[1738924055191,5.0957,197.41,197.36,18.51234231]
[1738924055702,5.0957,197.41,197.35,18.51234231]
[1738924056268,5.0957,197.41,197.36,18.51234231]
[1738924058697,18.51234231,197.4,197.33,100.11234231]
[1738924058998,18.51234231,197.38,197.33,81.6]
[1738924059297,18.51234231,197.39,197.33,100.11234231]
[1738924059473,18.51234231,197.39,197.33,81.6]
[1738924059793,18.51234231,197.38,197.33,81.6]
[1738924060297,18.51234231,197.39,197.33,81.6]
[1738924060675,23.57864231,197.38,197.33,81.6]
[1738924061574,5.0663,197.38,197.33,81.6]
[1738924062300,18.51234231,197.38,197.33,81.6]
[1738924062601,11.84023891,197.37,197.33,81.6]
[1738924062775,11.84023891,197.36,197.31,0.063]
[1738924063102,11.84023891,197.34,197.31,0.063]
[1738924063301,13.41184853,197.35,197.33,0.5]
[1738924063802,25.25208744,197.34,197.33,0.5]
[1738924064298,30.31938744,197.34,197.33,0.5]
[1738924064668,36.98624803,197.34,197.33,0.5]
[1738924069785,18.5070995,197.32,197.31,0.063]
[1738924070300,18.5070995,197.33,197.31,0.063]
[1738924070700,5.0676,197.33,197.31,0.063]
[1738924070901,6.654,197.36,197.32,18.5070995]
[1738924071398,5.0669,197.36,197.31,18.5700995]
[1738924073407,5.0666,197.37,197.31,18.5700995]
[1738924073989,23.5736995,197.37,197.31,0.063]
[1738924074219,18.5070995,197.36,197.31,0.063]
[1738924074419,18.5070995,197.36,197.32,0.063]
[1738924074583,18.5070995,197.34,197.32,0.063]
[1738924075081,18.5070995,197.33,197.32,0.063]
[1738924075277,18.5070995,197.34,197.32,0.063]
[1738924075488,5.0673,197.34,197.32,0.063]
[1738924078402,5.0671,197.35,197.32,0.063]
[1738924080211,5.0969,197.36,197.32,0.063]
[1738924080506,0.03,197.36,197.34,18.5070995]
[1738924081615,0.03,197.36,197.33,18.5070995]
[1738924081790,0.03,197.36,197.32,237.3700995]
[1738924082810,0.03,197.36,197.33,18.5070995]
[1738924083018,0.03,197.36,197.35,18.5070995]
[1738924083538,0.03,197.36,197.34,18.5070995]
[1738924083711,0.03,197.36,197.33,18.5070995]
[1738924084216,0.03,197.36,197.34,18.5070995]
[1738924085018,0.03,197.36,197.33,18.5070995]
[1738924085411,0.03,197.36,197.34,18.5070995]
[1738924086519,0.03,197.36,197.32,0.063]
[1738924086691,11.84256664,197.34,197.32,0.063]
[1738924086899,11.84256664,197.33,197.32,0.063]
[1738924087996,16.91016664,197.33,197.32,0.063]
[1738924088401,5.0676,197.33,197.32,0.063]
[1738924090336,11.84256664,197.34,197.32,0.063]
[1738924090538,6.6828,197.35,197.32,0.063]
[1738924091319,11.84256664,197.34,197.32,0.063]
[1738924091513,11.84256664,197.33,197.32,0.063]
[1738924092738,25.25441517,197.34,197.32,0.063]
[1738924092949,30.32171517,197.34,197.32,0.063]
[1738924093120,5.0673,197.34,197.32,0.063]
[1738924096441,16.93966664,197.36,197.32,0.063]
[1738924096935,11.84256664,197.35,197.32,0.063]
[1738924098246,5.0673,197.34,197.32,0.063]
[1738924098742,13.44184853,197.36,197.32,0.063]
[1738924098931,18.50894853,197.36,197.32,0.063]
[1738924099243,0.03,197.36,197.32,0.063]
[1738924099613,5.0969,197.36,197.32,0.063]
[1738924099810,16.93946664,197.36,197.32,0.063]
[1738924101433,5.0969,197.36,197.32,0.063]
[1738924101945,16.93946664,197.36,197.32,0.063]
[1738924102238,11.84256664,197.34,197.32,0.063]
[1738924102644,11.84256664,197.33,197.32,0.063]
[1738924103515,30.32201517,197.33,197.32,0.063]
[1738924109428,18.47944853,197.33,197.32,0.063]
[1738924110552,5.0676,197.33,197.32,0.063]
[1738924111647,5.0673,197.34,197.32,0.063]
[1738924113122,0.03,197.35,197.33,11.84256664]
[1738924114337,0.03,197.35,197.34,11.84256664]
[1738924116251,0.03,197.35,197.33,11.84256664]
[1738924118829,0.03,197.35,197.34,11.84256664]
[1738924119438,0.03,197.35,197.34,17.66981238]
[1738924120353,0.03,197.35,197.34,236.46981238]
[1738924120656,0.03,197.35,197.34,235.70986664]
[1738924122155,0.03,197.41,197.36,0.3595672]
[1738924122339,0.03,197.41,197.37,11.84256664]
[1738924124258,0.03,197.41,197.39,11.84256664]
[1738924124562,0.03,197.41,197.4,11.84256664]
[1738924124723,0.03,197.41,197.4,230.64256664]
[1738924124928,0.03,197.41,197.4,236.98366664]
[1738924125351,0.03,197.41,197.4,284.3539332]
[1738924125864,0.03,197.43,197.42,20.0]
[1738924126024,0.03,197.43,197.42,32.60204598]
[1738924126229,0.03,197.46,197.45,1.0]
[1738924126452,0.03,197.47,197.45,149.80189494]
[1738924126749,0.03,197.47,197.46,11.84256664]
[1738924127169,0.03,197.47,197.46,150.04256664]
[1738924127325,15.68961142,197.54,197.5,20.0]
[1738924127642,0.03,197.55,197.51,11.84256664]
[1738924127951,0.03,197.55,197.54,11.84256664]
[1738924128155,0.03,197.55,197.53,11.84256664]
[1738924129028,0.03,197.55,197.52,11.84256664]
[1738924129459,0.03,197.55,197.53,11.84256664]
[1738924130831,0.03,197.55,197.52,11.84256664]
[1738924131052,0.03,197.55,197.5,31.84256664]
[1738924131254,0.03,197.55,197.51,11.84256664]
[1738924132258,16.93456664,197.55,197.5,20.0]
[1738924132758,25.25441517,197.54,197.47,11.84256664]
[1738924132966,11.84256664,197.53,197.46,93.44256664]
[1738924133263,11.84256664,197.52,197.45,11.84256664]
[1738924134164,5.063,197.51,197.45,11.84256664]
[1738924134738,11.84256664,197.5,197.44,11.84256664]
[1738924135653,11.84256664,197.5,197.44,11.90556664]
[1738924136266,5.0635,197.49,197.44,11.90556664]
[1738924136637,5.0635,197.49,197.45,18.47264058]
[1738924137263,18.47504853,197.5,197.45,18.47264058]
[1738924138348,5.0632,197.5,197.45,18.47264058]
[1738924138667,5.0632,197.5,197.46,18.47264058]
[1738924140162,5.0632,197.5,197.45,18.47264058]
[1738924140552,36.94768911,197.5,197.44,0.063]
[1738924141364,18.47504853,197.5,197.44,18.53564058]
[1738924142866,18.47504853,197.5,197.45,18.47264058]
[1738924143049,18.47504853,197.5,197.44,18.53564058]
[1738924143664,5.0638,197.48,197.44,0.063]
[1738924143846,23.53644058,197.48,197.44,0.063]
[1738924144761,31.88448911,197.47,197.44,0.063]
[1738924144943,18.47264058,197.46,197.44,0.063]
[1738924145351,31.88448911,197.47,197.44,0.063]
[1738924145942,5.0643,197.46,197.44,0.063]
[1738924146269,36.19324058,197.51,197.44,18.53564058]
[1738924146568,13.41184853,197.5,197.44,18.53564058]
[1738924147380,0.03,197.5,197.48,18.47264058]
[1738924147865,0.03,197.5,197.47,18.47264058]
[1738924148547,0.03,197.5,197.48,18.47264058]
[1738924151162,0.03,197.5,197.47,18.47264058]
[1738924151368,0.03,197.5,197.46,18.47264058]
[1738924151553,0.03,197.5,197.45,18.47264058]
[1738924152038,30.89448911,197.51,197.45,18.47264058]
[1738924152340,25.08384058,197.52,197.45,18.47264058]
[1738924152738,18.47264058,197.49,197.44,0.063]
[1738924152964,18.47264058,197.5,197.44,18.53564058]
[1738924153469,5.0635,197.49,197.44,18.53564058]
[1738924153767,5.0635,197.49,197.44,0.063]
[1738924154465,5.0635,197.49,197.44,18.53564058]
[1738924155949,5.0635,197.49,197.44,0.063]
[1738924156152,23.53614058,197.49,197.44,0.063]
[1738924156669,16.88921093,197.49,197.44,0.063]
[1738924157572,11.82571093,197.48,197.44,0.063]
[1738924158070,11.82571093,197.49,197.44,0.063]
[1738924158877,5.0638,197.48,197.44,0.063]
[1738924159470,13.41184853,197.47,197.44,0.063]
[1738924160777,5.0643,197.46,197.44,0.063]
[1738924171668,5.0638,197.48,197.44,0.063]
[1738924171874,5.0638,197.48,197.44,11.88871093]
[1738924172989,5.0638,197.48,197.44,0.063]
[1738924173590,5.0635,197.49,197.44,0.063]
[1738924177402,5.0635,197.49,197.44,11.88871093]
[1738924178203,5.0635,197.49,197.44,0.063]
[1738924178502,5.064,197.47,197.44,0.063]
[1738924178685,16.88971093,197.47,197.44,0.063]
[1738924181996,16.88971093,197.47,197.44,10.063]
[1738924183197,5.064,197.47,197.44,10.063]
[1738924184286,25.23755946,197.46,197.44,10.063]
[1738924184491,25.23755946,197.45,197.44,10.063]
[1738924186606,30.30205946,197.45,197.44,10.063]
[1738924187499,12.6599,197.48,197.44,10.063]
[1738924187500,5.0635,197.49,197.44,21.88871093]
[1738924187810,5.0635,197.49,197.45,11.82571093]
[1738924187980,5.0635,197.49,197.44,10.063]
[1738924188185,13.41184853,197.48,197.44,10.063]
[1738924188581,5.064,197.47,197.44,10.063]
[1738924188790,13.41184853,197.46,197.44,10.063]
[1738924194000,5.0645,197.45,197.44,10.063]
[1738924194185,5.0645,197.45,197.44,0.063]
[1738924197607,18.47584853,197.47,197.44,0.063]
[1738924201908,30.30155946,197.47,197.44,0.063]
[1738924202386,18.47584853,197.47,197.44,0.063]
[1738924202588,5.064,197.47,197.44,0.063]
[1738924202905,16.88971093,197.47,197.44,0.063]
[1738924203113,11.82571093,197.46,197.44,0.063]
[1738924203909,30.30205946,197.45,197.44,0.063]
[1738924207692,5.0645,197.45,197.44,0.063]
[1738924210318,5.0643,197.46,197.44,0.063]
[1738924211014,5.0635,197.49,197.45,11.82571093]
[1738924211219,0.03,197.5,197.45,11.82571093]
[1738924211220,5.0933,197.5,197.45,11.82571093]
[1738924212014,16.91901093,197.5,197.44,18.49421093]
[1738924212218,5.0933,197.5,197.44,18.49421093]
[1738924212814,5.0933,197.5,197.45,11.82571093]
[1738924214588,5.0638,197.48,197.44,6.6685]
[1738924214789,25.23755946,197.47,197.44,0.063]
[1738924215214,13.41184853,197.47,197.44,0.063]
[1738924216715,5.0643,197.46,197.44,0.063]
[1738924217217,5.0639,197.48,197.44,0.063]
[1738924217393,5.0639,197.48,197.44,11.88871093]
[1738924218515,5.0635,197.49,197.44,11.88871093]
[1738924220213,0.03,197.5,197.47,11.82571093]
[1738924220916,0.03,197.5,197.45,11.82571093]
[1738924221139,0.03,197.5,197.44,11.88871093]
[1738924222103,13.41184853,197.49,197.44,11.88871093]
[1738924222307,11.82571093,197.49,197.44,0.063]
[1738924222615,11.82571093,197.48,197.44,0.063]
[1738924222815,5.064,197.47,197.44,0.063]
[1738924223319,5.0933,197.5,197.46,11.82571093]
[1738924223514,5.0933,197.5,197.45,11.82571093]
[1738924223823,5.0933,197.5,197.44,11.88871093]
[1738924226801,0.03,197.5,197.45,11.82571093]
[1738924227509,0.03,197.5,197.45,11.82227654]
[1738924228819,13.44184853,197.5,197.45,11.82227654]
[1738924230525,0.03,197.5,197.46,11.82227654]
[1738924231141,0.03,197.5,197.46,6.5924]
[1738924231299,0.03,197.5,197.49,11.82227654]
[1738924233209,0.03,197.5,197.49,11.81541052]
[1738924234114,0.03,197.5,197.49,277.8770526]
[1738924234514,0.03,197.5,197.49,278.8770526]
[1738924234924,0.03,197.52,197.51,20.0]
[1738924235124,0.03,197.55,197.52,7.7712]
[1738924235327,0.03,197.55,197.54,11.81541052]
[1738924235630,0.03,197.55,197.54,149.01541052]
[1738924236512,0.03,197.56,197.54,149.01541052]
[1738924236712,7.85042302,197.65,197.54,149.01541052]
[1738924236713,7.85042302,197.65,197.58,20.0]
[1738924237030,7.85042302,197.65,197.64,18.44078741]
[1738924237405,1.6196,197.69,197.64,18.44078741]
[1738924237610,5.0586,197.68,197.64,18.44078741]
[1738924238327,0.03,197.7,197.64,18.44078741]
[1738924238528,5.0883,197.7,197.64,18.44078741]
[1738924238733,5.0883,197.7,197.65,18.44078741]
[1738924238933,0.03,197.7,197.69,18.44078741]
[1738924239435,0.03,197.7,197.65,155.64078741]
[1738924239637,0.03,197.7,197.65,18.44078741]
[1738924240251,0.03,197.7,197.67,18.44078741]
[1738924241118,0.03,197.7,197.68,18.44078741]
[1738924241544,0.03,197.7,197.67,18.44078741]
[1738924243677,0.03,197.7,197.68,18.44078741]
[1738924244532,0.03,197.7,197.69,18.44078741]
[1738924245045,0.03,197.7,197.68,18.44078741]
[1738924245243,0.03,197.7,197.69,18.44078741]
[1738924245544,0.03,197.7,197.69,19.19935445]
[1738924247019,0.03,197.7,197.69,18.44078741]
[1738924247841,0.03,197.7,197.67,18.44078741]
[1738924248126,0.03,197.7,197.62,18.44078741]
[1738924248127,18.44078741,197.69,197.62,18.44078741]
[1738924248547,13.44184853,197.7,197.58,145.0577]
[1738924248548,13.41184853,197.67,197.61,18.44078741]
[1738924249226,13.41184853,197.69,197.64,18.44078741]
[1738924249427,13.41184853,197.67,197.64,18.44078741]
[1738924249741,5.0586,197.68,197.64,18.44078741]
[1738924252354,13.44184853,197.7,197.64,18.44078741]
[1738924252548,5.0584,197.69,197.64,18.44078741]
[1738924253629,5.0584,197.69,197.63,18.44078741]
[1738924253828,13.41184853,197.68,197.62,18.44078741]
[1738924254333,5.0584,197.69,197.63,18.44078741]
[1738924254533,5.0584,197.69,197.64,18.44078741]
[1738924254740,5.0584,197.69,197.63,18.44078741]
[1738924255849,13.41184853,197.68,197.62,18.44078741]
[1738924256034,5.0589,197.67,197.62,18.44078741]
[1738924256740,5.0589,197.67,197.62,11.80199956]
[1738924256941,13.41184853,197.66,197.61,149.00199956]
[1738924257138,13.41184853,197.66,197.61,137.2]
[1738924257756,13.41184853,197.66,197.61,149.00199956]
[1738924258957,13.41184853,197.66,197.62,11.80199956]
[1738924259542,5.0589,197.67,197.63,11.80199956]
[1738924262557,0.03,197.7,197.69,11.80199956]
[1738924264668,0.03,197.7,197.69,18.42630079]
[1738924264867,0.03,197.7,197.65,5.0594]
[1738924264868,0.03,197.7,197.68,18.42630079]
[1738924265053,0.03,197.7,197.66,18.42630079]
[1738924265245,0.03,197.7,197.6,26.33901817]
[1738924265246,31.86814932,197.7,197.64,18.42630079]
[1738924265565,31.86814932,197.7,197.63,18.42630079]
[1738924265870,13.41184853,197.67,197.62,18.42630079]
[1738924266057,13.41184853,197.67,197.61,18.42630079]
[1738924266263,5.0591,197.66,197.61,18.42630079]
[1738924266767,31.83814932,197.65,197.59,18.42630079]
[1738924267148,31.83814932,197.65,197.58,18.42630079]
[1738924268142,13.41184853,197.63,197.57,18.42630079]